bitfinex/quotes_ETHUSD_20241001
["timestamp","ask_amount","ask_price","bid_price","bid_amount"]
[1727790413399,5.43756,2584.2,2583.1,0.07719732]
[1727790413400,6.52244132,2584.2,2583.1,3.94841732]
[1727790413698,0.6059949,2583.6,2583.3,3.87098]
[1727790414038,4.95464132,2584.2,2583.3,3.87098]
[1727790414039,8.82433132,2584.2,2583.4,3.94818601]
[1727790414385,8.82433132,2584.2,2583.2,1.5073]
[1727790414386,3.87057,2583.6,2583.2,1.5073]
[1727790414509,4.47664618,2583.5,2583.2,1.5073]
[1727790414838,0.60592618,2583.4,2583.2,1.5073]
[1727790415046,3.87056,2583.7,2583.2,1.5073]
[1727790415247,3.87021,2583.9,2583.2,4.5073]
[1727790415248,0.60603142,2583.6,2583.2,4.5073]
[1727790415393,0.60603142,2583.6,2583.3,7.81929232]
[1727790415394,0.60599523,2583.6,2583.3,7.81929232]
[1727790415597,3.86992,2584.1,2583.4,0.07740282]
[1727790415598,3.87004,2584.0,2583.4,0.07740282]
[1727790415819,4.47610533,2583.9,2583.2,4.5073]
[1727790416029,0.60597533,2583.8,2583.2,4.5073]
[1727790416235,4.47626533,2583.8,2583.2,4.5073]
[1727790416398,0.60597533,2583.7,2583.2,4.5073]
[1727790416823,0.60597533,2583.6,2583.2,4.5073]
[1727790417023,4.95464132,2584.6,2583.3,3.87101]
[1727790417224,4.95464132,2584.6,2583.4,6.87086]
[1727790417225,3.86975,2584.2,2583.4,6.87086]
[1727790417407,0.60595478,2584.1,2583.5,3.94809278]
[1727790417619,0.60595478,2584.1,2583.5,3.87071]
[1727790417825,0.60595478,2584.0,2583.5,3.87071]
[1727790418023,0.60595478,2583.9,2583.4,3.0]
[1727790418253,0.60595478,2583.8,2583.2,4.5073]
[1727790418404,0.60595478,2583.7,2583.2,9.2163]
[1727790418597,0.60595478,2583.6,2583.5,3.87071]
[1727790418803,8.82441132,2584.2,2583.5,0.0481281]
[1727790418804,3.86993,2584.1,2583.5,0.0481281]
[1727790419101,0.60591469,2584.0,2583.2,1.5073]
[1727790419297,3.87043,2583.7,2583.2,1.5073]
[1727790419541,4.47603469,2583.9,2583.2,1.5073]
[1727790419542,0.60591469,2583.6,2583.2,1.5073]
[1727790419741,0.60591469,2583.8,2583.2,5.37845]
[1727790419942,0.60591469,2583.8,2583.2,1.5073]
[1727790419943,0.60591469,2583.7,2583.2,1.5073]
[1727790420239,0.60591469,2583.7,2582.5,3.87214]
[1727790420240,3.87133,2583.1,2582.6,1.5712]
[1727790420449,5.56055601,2583.0,2582.6,1.5712]
[1727790420655,5.56055601,2583.0,2582.3,1.5846]
[1727790420656,9.43202601,2583.0,2582.3,1.5846]
[1727790420849,0.60624214,2582.9,2582.3,1.5846]
[1727790420999,3.872,2582.7,2582.0,1.5268]
[1727790421199,0.60624214,2582.6,2582.0,1.5268]
[1727790421400,0.60624214,2582.5,2582.0,5.39966]
[1727790421611,0.60624214,2582.5,2581.4,0.3876]
[1727790421612,3.87132,2583.1,2582.3,5.39919]
[1727790421840,0.60620208,2583.0,2582.4,3.87223]
[1727790422142,0.60620208,2582.9,2582.3,1.5268]
[1727790422348,5.50691,2583.3,2582.4,3.87234]
[1727790422349,0.60620208,2582.8,2582.4,3.87234]
[1727790422646,1.6664,2583.6,2582.8,3.87173]
[1727790422852,1.6664,2583.6,2582.3,2.066751]
[1727790422853,0.95743094,2583.5,2582.3,2.066751]
[1727790423150,4.95464132,2583.0,2582.3,3.87243]
[1727790423349,4.95464132,2583.0,2582.0,3.87285]
[1727790423502,3.8719,2582.8,2581.9,5.41421]
[1727790423707,7.74381,2582.8,2581.9,5.41421]
[1727790423901,3.87238,2582.4,2581.9,1.5412]
[1727790424102,3.87238,2582.4,2581.6,3.87346]
[1727790424103,4.95464132,2582.1,2581.6,1.5459]
[1727790424301,0.60613698,2582.0,2581.2,3.87409]
[1727790424548,0.60613698,2582.0,2581.3,1.6473]
[1727790425054,4.95464132,2581.7,2581.3,1.6473]
[1727790425352,0.60613698,2581.6,2581.1,3.8743]
[1727790425515,0.60613698,2581.6,2580.9,1.6014]
[1727790425516,4.95464132,2582.1,2580.9,5.476]
[1727790425702,1.51981298,2582.0,2580.9,5.476]
[1727790425903,5.7318437,2582.1,2580.9,1.6014]
[1727790425904,1.51981298,2581.9,2580.9,1.6014]
[1727790426141,0.60646295,2581.8,2581.1,3.87418]
[1727790426429,8.82816132,2581.7,2580.9,1.6014]
[1727790426615,0.60646295,2581.6,2581.0,3.87437]
[1727790426943,1.5991,2581.9,2581.0,3.87437]
[1727790427257,0.60649482,2581.8,2581.1,3.87418]
[1727790427407,8.82749132,2582.1,2580.9,1.6014]
[1727790427408,5.7318437,2582.1,2580.9,1.6014]
[1727790427746,0.95754375,2582.0,2581.2,3.87403]
[1727790427901,4.95464132,2582.1,2581.1,3.0]
[1727790427902,0.60643689,2581.9,2581.1,3.0]
[1727790428248,3.87297,2582.0,2581.1,3.87427]
[1727790428401,10.20922631,2582.1,2581.1,3.87427]
[1727790428402,10.20922631,2582.1,2581.2,3.0]
[1727790428605,4.83042809,2582.0,2581.2,3.0]
[1727790428801,5.61001568,2582.0,2581.2,3.0]
[1727790429492,1.73703568,2582.0,2581.2,3.0]
[1727790429811,5.44761,2581.6,2580.9,1.6014]
[1727790430146,1.574,2581.6,2580.9,1.6014]
[1727790430302,1.574,2581.6,2580.9,5.47597]
[1727790430503,1.574,2581.6,2580.9,1.6014]
[1727790430504,5.44757,2581.6,2580.9,1.6014]
[1727790430704,5.44757,2581.6,2580.6,1.6192]
[1727790430955,4.95464132,2581.3,2580.6,1.6192]
[1727790431306,4.95464132,2581.3,2579.8,1.6215]
[1727790431307,4.95464132,2580.9,2579.8,1.6215]
[1727790431510,1.5929,2581.2,2580.0,3.87586]
[1727790431511,4.95464132,2580.5,2580.0,3.87586]
[1727790431733,4.95464132,2580.5,2579.6,3.87652]
[1727790431932,4.95464132,2580.5,2579.4,1.6215]
[1727790431933,4.95464132,2580.5,2579.7,3.8764]
[1727790432141,4.95464132,2580.5,2579.6,3.87649]
[1727790432142,12.70523132,2580.5,2579.6,3.87649]
[1727790432358,5.60939545,2580.5,2579.7,3.87631]
[1727790435358,3.87497,2580.7,2580.0,2.086118]
[1727790435516,4.95464132,2580.9,2579.7,3.87634]
[1727790435517,5.42738,2580.6,2579.7,3.87634]
[1727790435747,5.42738,2580.6,2579.6,1.5605]
[1727790435748,4.95464132,2580.5,2579.6,1.5605]
[1727790435948,4.95464132,2580.5,2579.9,7.75199]
[1727790436157,4.95464132,2580.5,2579.6,1.5605]
[1727790436158,4.95464132,2580.5,2579.7,7.75265]
[1727790436339,4.95464132,2580.5,2579.8,3.87623]
[1727790436510,4.95464132,2580.5,2579.8,4.419903]
[1727790436939,8.82986132,2580.5,2579.6,5.43693]
[1727790437208,3.87549,2580.4,2579.7,3.0]
[1727790437491,4.95464132,2580.5,2579.7,3.0]
[1727790437674,3.87538,2580.4,2579.7,3.0]
[1727790438346,4.95464132,2580.5,2579.6,5.43693]
[1727790438541,4.51162977,2580.4,2579.6,5.43693]
[1727790438804,3.87555,2580.3,2579.6,5.43693]
[1727790438975,3.87555,2580.3,2579.6,3.87643]
[1727790439151,3.87555,2580.3,2579.5,3.8767]
[1727790439367,1.6083,2580.0,2579.3,1.6149]
[1727790439593,1.6083,2580.0,2579.3,5.49189]
[1727790439772,1.6083,2580.0,2579.4,3.87672]
[1727790439979,1.6083,2580.0,2579.4,7.75349]
[1727790440203,1.5681,2580.3,2579.3,3.87688]
[1727790440397,8.82995132,2580.5,2579.6,3.87649]
[1727790440692,3.87549,2580.4,2579.6,3.87649]
[1727790440905,3.87553,2580.3,2579.6,3.87649]
[1727790441131,4.95464132,2580.5,2579.4,1.994488]
[1727790441345,3.87523,2580.5,2579.8,3.87615]
[1727790441479,1.5681,2580.6,2579.8,4.263765]
[1727790441885,1.5681,2580.6,2579.8,0.387615]
[1727790441978,1.5681,2580.6,2579.5,3.87669]
[1727790442176,1.5681,2580.6,2580.0,3.87588]
[1727790442384,4.95464132,2580.5,2579.5,1.5632]
[1727790442609,4.95464132,2580.5,2579.9,3.87603]
[1727790442758,4.95464132,2580.5,2579.6,3.87645]
[1727790442957,4.95464132,2580.5,2579.8,3.87617]
[1727790443166,1.5662,2581.0,2580.2,3.87554]
[1727790443464,5.44066,2581.0,2580.2,3.87557]
[1727790443698,5.44066,2581.0,2580.1,3.87572]
[1727790443860,4.95464132,2580.9,2580.3,3.87549]
[1727790444077,1.5662,2581.0,2580.5,3.87513]
[1727790444299,1.5662,2581.0,2580.4,3.87528]
[1727790444478,1.5662,2581.0,2580.3,4.263029]
[1727790444699,1.5662,2581.0,2580.4,3.87526]
[1727790445015,1.5662,2581.0,2580.4,3.87534]
[1727790445163,1.5662,2581.0,2580.6,3.87506]
[1727790445368,1.5662,2581.0,2580.5,0.4262889]
[1727790445594,1.5662,2581.0,2580.4,3.87534]
[1727790446011,5.44067,2581.0,2580.2,7.75108]
[1727790446219,5.44067,2581.0,2579.9,3.87606]
[1727790446220,6.45644132,2580.9,2579.8,3.87625]
[1727790446363,3.87514,2580.6,2579.9,3.87602]
[1727790446565,1.25244503,2580.8,2579.9,3.87609]
[1727790446566,0.64564413,2580.8,2579.9,3.87609]
[1727790446815,14.20586132,2580.9,2580.1,3.87578]
[1727790446967,10.33115132,2580.9,2580.2,3.87564]
[1727790447167,1.5018,2580.9,2580.4,3.87527]
[1727790447400,10.37206132,2581.3,2580.4,3.87532]
[1727790447677,3.87424,2581.2,2580.4,7.75056]
[1727790447862,10.37206132,2581.3,2580.1,1.5935]
[1727790447863,6.49794132,2581.3,2580.5,0.775056]
[1727790448091,6.49794132,2581.3,2580.7,3.87489]
[1727790448329,10.45227132,2581.7,2581.0,3.87437]
[1727790448481,1.6242,2581.7,2581.1,0.07747579]
[1727790448666,3.87321,2581.9,2581.1,3.87416]
[1727790448867,0.60648458,2581.8,2581.2,4.649002]
[1727790449064,3.87213,2582.6,2581.6,3.87349]
[1727790449065,1.6117,2582.3,2581.6,3.87349]
[1727790449316,4.95464132,2582.5,2581.6,3.87349]
[1727790449317,0.60640819,2582.2,2581.7,0.07728204]
[1727790449467,1.6117,2582.7,2582.0,3.87287]
[1727790449667,0.60631898,2582.6,2582.2,3.87256]
[1727790449915,1.6117,2583.1,2582.3,0.07728202]
[1727790450095,4.47782227,2583.0,2582.2,1.6593]
[1727790450413,3.87201,2582.7,2581.9,4.6593]
[1727790450818,8.82635132,2582.9,2582.0,3.87283]
[1727790450928,0.60628022,2582.6,2581.9,1.6593]
[1727790451208,0.60628022,2582.6,2582.0,3.87295]
[1727790451368,3.87187,2582.8,2581.9,1.6593]
[1727790451571,3.87216,2582.6,2581.9,1.6593]
[1727790451889,0.60627819,2582.5,2581.9,1.6593]
[1727790452410,0.60627819,2582.5,2581.6,3.8735]
[1727790452411,6.04295819,2582.4,2581.6,3.8735]
[1727790452565,6.04295819,2582.4,2581.8,3.87324]
[1727790452566,2.17064065,2582.4,2581.8,3.87324]
[1727790452767,0.60632335,2582.3,2582.1,3.87278]
[1727790453013,1.5643,2582.8,2582.2,3.87264]
[1727790453227,0.60624258,2582.7,2582.2,3.87264]
[1727790453364,1.5643,2582.8,2582.2,3.87264]
[1727790453734,0.6062575,2582.7,2582.1,1.6439]
[1727790454079,1.5643,2582.8,2582.1,1.6439]
[1727790454080,0.60625907,2582.6,2582.1,1.6439]
[1727790454402,5.4361,2582.8,2582.1,1.6439]
[1727790454598,4.95464132,2582.5,2581.9,3.0]
[1727790454769,0.60629078,2582.4,2581.9,3.0]
[1727790454976,0.60629078,2582.4,2581.8,1.6359]
[1727790455516,2.62375713,2583.1,2582.2,3.87256]
[1727790455670,0.60621671,2583.0,2582.3,0.07743787]
[1727790455879,2.62375713,2583.1,2582.3,0.07743787]
[1727790455880,0.60621671,2582.9,2582.4,3.87221]
[1727790456084,2.62375713,2583.1,2582.5,3.94964341]
[1727790456085,1.58,2583.1,2582.5,3.94964341]
[1727790456339,1.58,2583.1,2582.0,4.5339]
[1727790456340,4.95464132,2582.9,2582.0,4.5339]
[1727790456620,0.60619066,2582.8,2582.2,3.87266]
[1727790456848,3.87178,2582.8,2582.1,3.87269]
[1727790457021,8.82636132,2582.9,2582.2,3.87264]
[1727790457248,8.82636132,2582.9,2582.0,8.40672]
[1727790457249,4.4780215,2582.8,2582.0,8.40672]
[1727790457385,3.87177,2582.8,2582.0,8.40672]
[1727790457585,6.38242945,2582.9,2582.0,1.5339]
[1727790457832,6.38242945,2582.9,2581.3,5.96887244]
[1727790457833,4.95464132,2582.5,2581.7,1.6528]
[1727790458013,4.95464132,2582.5,2582.0,3.87287]
[1727790458326,1.58,2583.1,2581.9,3.87304]
[1727790458532,7.74335,2582.9,2581.7,1.6528]
[1727790458837,3.87179,2582.8,2582.1,3.87267]
[1727790458988,4.258969,2582.8,2582.1,3.87267]
[1727790459183,3.87253,2582.3,2581.8,3.0]
[1727790459398,5.40152,2582.5,2581.8,6.87317]
[1727790459624,3.87252,2582.3,2581.5,3.87359]
[1727790459827,3.87252,2582.3,2580.0,16.91176374]
[1727790459828,5.4025,2581.9,2581.0,1.5071]
[1727790460181,0.387179,2582.8,2581.3,3.87399]
[1727790460182,3.87295,2582.1,2581.3,3.87399]
[1727790460831,3.87226,2582.5,2580.7,5.54021]
[1727790460832,5.45933,2581.6,2580.7,5.54021]
[1727790461042,3.87429,2581.2,2580.3,5.54083]
[1727790461239,3.87429,2581.2,2580.3,1.6654]
[1727790461240,5.39751,2581.0,2580.3,1.6654]
[1727790461386,1.5229,2581.0,2580.3,1.6654]
[1727790461585,5.93719,2581.0,2580.3,1.6654]
[1727790461794,3.87494,2580.7,2579.9,5.4956]
[1727790462093,2.06261,2581.0,2580.3,3.87551]
[1727790462291,3.87478,2580.8,2580.1,3.87577]
[1727790462491,3.8754,2580.4,2579.7,3.87636]
[1727790462737,10.89177132,2581.0,2579.5,5.44537]
[1727790462738,4.95464132,2580.6,2579.5,5.44537]
[1727790462926,3.87566,2580.3,2579.5,5.44537]
[1727790463095,2.0812,2580.9,2578.7,0.56286415]
[1727790463096,3.87624,2579.9,2579.1,5.52123]
[1727790463305,3.87586,2580.1,2579.3,3.87687]
[1727790463581,6.48584132,2580.2,2579.3,4.429047]
[1727790463582,1.5312,2580.2,2579.3,4.429047]
[1727790463733,1.5312,2580.2,2579.3,0.552087]
[1727790463940,1.5312,2580.2,2579.1,5.52124]
[1727790463941,3.87631,2579.8,2579.1,5.52122]
[1727790464168,3.87602,2580.0,2579.1,5.52121]
[1727790464471,3.87603,2580.0,2579.1,5.52121]
[1727790464676,6.48584132,2580.2,2579.1,1.644]
[1727790464677,10.36158132,2580.2,2579.1,1.644]
[1727790464876,3.87609,2580.0,2579.1,5.52125]
[1727790465271,3.87622,2579.9,2579.1,5.52125]
[1727790465481,1.5312,2580.2,2579.2,0.07753228]
[1727790465690,1.5312,2580.2,2579.5,3.87662]
[1727790466287,1.5312,2580.2,2579.1,1.644]
[1727790466288,3.87526,2580.5,2579.8,3.87625]
[1727790466454,6.27282613,2580.6,2579.9,3.87611]
[1727790466790,2.39767613,2580.6,2579.5,3.87668]
[1727790467082,3.87579,2580.2,2579.3,7.75383]
[1727790467239,3.87599,2580.0,2579.1,8.52124]
[1727790467437,5.53666,2579.8,2579.1,3.87724]
[1727790468384,5.53666,2579.8,2579.1,3.87721]
[1727790468680,7.75212,2580.0,2579.3,3.877]
[1727790468836,1.5188,2580.0,2579.4,0.07752959]
[1727790469076,1.5188,2580.0,2579.5,3.87671]
[1727790469578,5.39488,2580.0,2579.3,0.775421]
[1727790469897,3.87629,2579.8,2579.1,6.87722]
[1727790470178,8.83098132,2579.8,2578.7,1.6963108]
[1727790470548,3.87659,2579.6,2578.7,1.6963108]
[1727790470745,3.87659,2579.6,2578.7,0.1248108]
[1727790470945,4.75971313,2579.6,2578.9,3.87752]
[1727790471379,0.88312313,2579.6,2579.0,3.87735]
[1727790471537,3.87666,2579.6,2578.9,3.87752]
[1727790471886,3.87696,2579.4,2578.8,3.87776]
[1727790472172,3.87672,2579.5,2578.7,7.8804808]
[1727790472416,4.95464132,2579.8,2578.7,4.79068888]
[1727790472417,7.75386,2579.4,2578.7,4.79068888]
[1727790472579,5.4662,2579.3,2578.7,4.79068888]
[1727790472961,1.5891,2579.3,2578.7,4.79067888]
[1727790473183,1.5891,2579.3,2578.9,7.75513]
[1727790473377,3.87665,2579.6,2579.1,3.8773]
[1727790473378,1.5988,2579.6,2579.1,3.8773]
[1727790473721,1.5988,2579.6,2579.2,3.87709]
[1727790473881,3.87591,2580.1,2579.4,3.87678]
[1727790474080,3.87602,2580.0,2579.4,3.87678]
[1727790474290,3.87591,2580.1,2579.4,3.87678]
[1727790474438,3.87591,2580.1,2579.4,3.87675]
[1727790474646,1.5988,2580.2,2579.2,4.38025597]
[1727790474647,6.55344132,2580.2,2579.2,4.38025597]
[1727790474846,7.20878545,2580.2,2579.4,3.87675]
[1727790475049,3.87598,2580.0,2579.4,3.87675]
[1727790475256,3.87596,2580.1,2579.3,3.8769]
[1727790475453,3.87596,2580.1,2579.2,0.50318597]
[1727790475681,3.87596,2580.1,2579.5,3.87663]
[1727790476191,7.75191,2580.1,2579.5,3.87663]
[1727790476387,3.87595,2580.1,2579.3,3.87699]
[1727790476602,5.52467,2580.6,2579.6,3.87655]
[1727790476898,1.6496,2580.6,2580.3,3.87542]
[1727790477050,5.5243,2580.9,2580.3,3.87542]
[1727790477452,3.87487,2580.8,2580.1,3.87571]
[1727790477677,2.643456,2580.9,2579.9,3.87603]
[1727790477844,2.643456,2580.9,2579.4,3.87681]
[1727790477845,4.95464132,2580.6,2579.4,1.6311]
[1727790478048,5.38727,2580.2,2579.4,1.6311]
[1727790478288,3.87614,2579.9,2579.3,3.87692]
[1727790478495,3.87636,2579.8,2579.1,1.6311]
[1727790478854,3.87625,2579.9,2579.3,3.87694]
[1727790479001,3.87625,2579.9,2579.2,3.87703]
[1727790479218,3.87623,2579.9,2579.1,1.6311]
[1727790479395,3.87599,2580.0,2578.9,3.87761]
[1727790479705,3.87599,2580.0,2578.8,5.42987]
[1727790479706,1.618,2579.6,2578.8,5.42987]
[1727790479910,1.618,2579.6,2578.8,1.5522]
[1727790480271,3.87682,2579.5,2578.7,4.0026208]
[1727790480457,3.87737,2579.1,2578.7,0.1248108]
[1727790480690,5.49461,2579.6,2578.7,0.1248108]
[1727790480691,4.95464132,2579.4,2578.7,0.1248108]
[1727790480892,3.87694,2579.4,2578.7,0.1248108]
[1727790481148,1.618,2579.6,2579.1,3.8773]
[1727790481389,3.87687,2579.4,2578.7,4.0026408]
[1727790481684,1.618,2579.6,2578.9,3.8775]
[1727790481886,3.87642,2579.7,2579.1,7.75443]
[1727790482063,3.8767,2579.6,2578.9,3.87754]
[1727790482873,7.75339,2579.6,2579.0,3.87746]
[1727790483059,3.87669,2579.6,2579.0,3.87746]
[1727790483267,1.5644,2579.9,2579.0,3.87746]
[1727790483615,1.6094,2579.2,2578.7,0.1248108]
[1727790483966,3.87764,2578.9,2578.7,0.1248108]
[1727790484105,3.87777,2578.8,2578.7,0.1248108]
[1727790484327,3.87742,2579.1,2578.7,0.1248108]
[1727790484597,3.87762,2578.9,2578.7,0.1248108]
[1727790484901,7.75534,2578.9,2578.7,0.1248108]
[1727790485103,3.87762,2578.9,2578.7,0.1248108]
[1727790485259,3.87742,2579.1,2578.7,0.1248108]
[1727790485462,1.6094,2579.2,2578.7,0.1248108]
[1727790485463,3.87777,2578.8,2578.7,0.1248108]
[1727790485974,6.24361,2578.8,2578.7,0.1248108]
[1727790486295,3.87837,2578.4,2577.8,3.87917]
[1727790486504,2.36584,2578.8,2578.3,3.87838]
[1727790486788,8.83217132,2579.0,2577.9,3.879]
[1727790487108,3.87815,2578.6,2578.1,3.87881]
[1727790487190,3.87784,2578.8,2578.2,3.87861]
[1727790487465,3.87784,2578.8,2578.1,3.87881]
[1727790487580,9.02675113,2578.8,2578.1,3.87872]
[1727790487786,5.14886113,2578.8,2578.1,3.87872]
[1727790487960,1.6598,2578.5,2577.7,3.87933]
[1727790488168,1.6598,2578.5,2577.6,3.87956]
[1727790488169,3.87876,2578.2,2577.6,3.87956]
[1727790488414,1.6598,2578.5,2578.0,3.87897]
[1727790488613,3.87832,2578.5,2577.9,3.87902]
[1727790488795,1.5608,2578.8,2577.7,3.8794]
[1727790488796,3.87853,2578.3,2577.7,3.8794]
[1727790488979,3.87872,2578.2,2577.5,5.499]
[1727790489183,3.87909,2578.0,2577.4,0.05]
[1727790489380,3.87928,2577.8,2577.4,0.05]
[1727790489583,3.87952,2577.7,2577.4,0.05]
[1727790489873,3.87928,2577.8,2577.4,0.05]
[1727790490298,3.8796,2577.6,2577.4,0.05]
[1727790490616,5.56215611,2577.5,2577.4,0.05]
[1727790490912,6.50633172,2577.5,2577.4,0.05]
[1727790491112,0.60751479,2577.5,2577.4,0.05]
[1727790491267,5.52762,2578.1,2577.4,0.05]
[1727790491469,0.60741469,2578.0,2577.4,0.05]
[1727790491706,5.52762,2578.1,2577.4,0.05]
[1727790491707,3.87941,2577.8,2577.4,0.05]
[1727790491912,4.48689469,2577.7,2577.4,0.05]
[1727790492106,0.60741469,2577.6,2577.4,0.05]
[1727790492278,1.6487,2578.1,2577.4,0.05]
[1727790492279,5.52757,2578.1,2577.4,0.05]
[1727790492610,0.60740617,2578.0,2577.4,0.05]
[1727790492779,1.5552,2577.8,2577.4,0.05]
[1727790493112,5.43403,2578.1,2577.4,3.92983]
[1727790493326,1.5552,2578.1,2577.4,0.05]
[1727790493509,3.87869,2578.2,2577.5,3.95720926]
[1727790493682,0.60735065,2578.1,2577.5,0.07758926]
[1727790493870,1.5818,2578.4,2577.8,3.87917]
[1727790494069,0.40380621,2579.5,2577.5,0.55137593]
[1727790494070,0.60731507,2578.3,2578.1,1.5063]
[1727790494265,0.40380621,2579.5,2578.1,1.5063]
[1727790494266,5.45918,2579.1,2578.1,1.5063]
[1727790494478,0.60719268,2579.0,2578.5,3.87812]
[1727790494719,3.87667,2579.6,2578.8,3.87763]
[1727790494877,3.87647,2579.7,2578.9,0.0555814]
[1727790494878,0.60705359,2579.5,2578.9,0.0555814]
[1727790495065,3.87677,2579.5,2578.9,0.0555814]
[1727790495273,1.5272,2579.7,2578.8,6.23088812]
[1727790495274,0.60703769,2579.4,2579.0,3.87733]
[1727790495499,5.40373,2579.7,2579.0,3.87733]
[1727790495810,5.40373,2579.7,2578.8,1.6134]
[1727790495811,3.87693,2579.4,2578.8,1.6134]
[1727790496060,5.40376,2579.7,2579.0,3.87736]
[1727790496224,0.927992,2579.7,2579.1,0.07737009]
[1727790496381,0.60698216,2579.6,2578.8,1.6134]
[1727790496646,1.5272,2580.6,2579.5,3.8767]
[1727790496824,3.87551,2580.3,2579.5,3.8767]
[1727790497119,0.60684154,2580.2,2579.4,3.87685]
[1727790497455,0.60684154,2580.2,2579.4,0.549025]
[1727790497713,0.60684154,2580.1,2579.5,3.87671]
[1727790498016,3.87537,2580.4,2579.5,3.87671]
[1727790498171,3.87537,2580.4,2579.3,5.49039]
[1727790498172,0.60685263,2580.3,2579.6,3.87655]
[1727790498392,0.60685263,2580.2,2579.4,3.87687]
[1727790498570,0.60685263,2580.2,2579.3,1.6134]
[1727790498571,4.48252263,2580.2,2579.3,5.49027]
[1727790498771,3.87672,2579.5,2578.6,1.6598]
[1727790498981,3.87653,2579.7,2578.7,3.87785]
[1727790499209,3.87615,2579.9,2579.0,3.87746]
[1727790499421,0.60697778,2579.8,2578.8,3.87773]
[1727790499594,3.87662,2579.6,2578.8,3.87773]
[1727790499805,4.48369778,2579.5,2578.7,0.553765]
[1727790499983,1.6627,2579.3,2578.6,5.53783]
[1727790500189,5.53975,2579.3,2578.5,3.87811]
[1727790500472,0.60706883,2579.2,2578.5,3.87816]
[1727790500782,0.60706883,2579.2,2578.3,1.5524]
[1727790500783,3.87751,2579.0,2578.3,1.5524]
[1727790500987,1.6627,2579.3,2578.0,1.606]
[1727790501262,3.87792,2578.7,2578.0,1.606]
[1727790501528,3.87877,2578.2,2577.6,1.606]
[1727790501724,3.87892,2578.1,2577.4,0.05]
[1727790502019,3.8793,2577.8,2577.4,0.05]
[1727790502203,1.5592,2577.8,2577.4,0.05]
[1727790502613,1.5592,2578.1,2577.4,3.92986]
[1727790502783,2.35129406,2578.1,2577.4,0.05]
[1727790503133,1.5433,2578.5,2577.6,1.5789]
[1727790503281,1.5433,2578.5,2577.7,3.90979301]
[1727790503490,3.87779,2578.8,2577.8,0.03728075]
[1727790503742,1.6483,2579.2,2578.5,3.8781]
[1727790503881,3.87694,2579.4,2578.5,3.8781]
[1727790503882,3.87691,2579.4,2578.6,3.87795]
[1727790504082,1.6483,2579.8,2578.5,4.26595]
[1727790504083,1.6483,2579.8,2578.7,5.47613026]
[1727790504323,0.95693906,2579.7,2578.7,1.5208]
[1727790504650,0.6069997,2579.6,2579.0,3.87747]
[1727790504788,5.52464,2579.8,2579.1,0.07737954]
[1727790505124,3.87627,2579.8,2578.9,3.87755]
[1727790505330,3.87627,2579.8,2578.7,4.5208]
[1727790505331,3.87665,2579.6,2578.8,3.87774]
[1727790505655,5.38368,2580.2,2578.8,3.87774]
[1727790505656,3.87595,2580.1,2579.4,3.87684]
[1727790505895,1.508,2580.2,2579.3,1.5329]
[1727790506047,3.87548,2580.4,2579.6,3.87652]
[1727790506048,0.60687159,2580.0,2579.6,3.87652]
[1727790506208,7.75098,2580.4,2579.4,3.87672]
[1727790506209,3.87551,2580.3,2579.4,3.87672]
[1727790506425,4.48258301,2580.2,2579.4,3.87672]
[1727790506724,3.87524,2580.5,2579.6,3.87646]
[1727790506929,4.83310126,2580.4,2579.6,3.87646]
[1727790507224,3.87591,2580.1,2579.3,5.4098]
[1727790507437,0.95771903,2580.0,2579.3,1.5329]
[1727790507738,4.83384903,2579.9,2579.3,1.5329]
[1727790507883,3.87613,2579.9,2579.3,1.5329]
[1727790508080,3.87666,2579.6,2578.8,1.6321]
[1727790508360,3.87666,2579.6,2578.9,3.87756]
[1727790508616,8.83130132,2579.6,2578.8,1.6321]
[1727790508824,0.60696534,2579.5,2578.9,0.07754488]
[1727790509126,0.35099346,2579.5,2579.1,3.8773]
[1727790509433,5.42855638,2579.9,2579.1,0.38773]
[1727790509434,0.35106011,2579.7,2579.1,0.38773]
[1727790509642,1.5727,2580.1,2579.2,0.02840515]
[1727790509783,0.95800951,2580.0,2579.3,1.69200404]
[1727790509977,0.95800951,2579.9,2579.4,3.87686]
[1727790510183,3.87607,2580.0,2579.3,1.6636]
[1727790510489,0.95804347,2579.9,2579.3,1.6636]
[1727790510687,1.13949695,2580.3,2579.3,1.6636]
[1727790510688,0.77720238,2580.3,2579.6,3.87653]
[1727790510894,3.87591,2580.1,2579.3,4.6636]
[1727790511123,3.87651,2579.7,2579.3,1.6636]
[1727790511476,4.264231,2579.6,2579.0,1.5917]
[1727790511596,4.48356964,2579.6,2579.0,1.5917]
[1727790511922,4.65324238,2580.0,2579.0,5.46914]
[1727790512139,0.95799975,2579.9,2579.2,3.87706]
[1727790512307,3.87582,2580.1,2579.4,3.87677]
[1727790512564,3.87582,2580.1,2579.2,3.87709]
[1727790512565,0.775157,2580.1,2579.2,3.87709]
[1727790512829,3.87573,2580.2,2579.5,3.8766]
[1727790513030,3.87573,2580.2,2579.6,0.07751433]
[1727790513031,0.95798987,2580.1,2579.6,0.07751433]
[1727790513197,3.87573,2580.2,2579.6,3.95405433]
[1727790513385,5.44815,2580.4,2579.6,1.5148]
[1727790513588,0.95782657,2580.3,2579.7,0.07751317]
[1727790513823,3.87561,2580.3,2579.6,1.5148]
[1727790514033,3.87597,2580.0,2579.0,1.5148]
[1727790514185,3.87636,2579.8,2579.1,7.75455]
[1727790514408,3.87636,2579.8,2579.1,3.87724]
[1727790514622,3.87636,2579.8,2579.0,1.5148]
[1727790514800,3.87659,2579.6,2579.0,1.5148]
[1727790515004,3.8765,2579.7,2579.0,1.5148]
[1727790515226,4.48365748,2579.6,2579.0,1.5148]
[1727790516403,3.87659,2579.6,2579.0,1.5148]
[1727790516606,3.87659,2579.6,2579.1,0.07753491]
[1727790516799,3.87659,2579.6,2579.0,1.5148]